fUST/lending_fUST_20260105
["ID","MTS","AMOUNT","RATE_DAILY","PERIOD"]
[400466164,1767593909961,-500.0,9.322e-05,2]
[400466165,1767593909982,-500.0,9.322e-05,2]
[400466166,1767593910004,-500.0,9.322e-05,2]
[400466167,1767593910030,-500.0,9.322e-05,2]
[400466168,1767593910053,-500.0,9.322e-05,2]
[400466169,1767593910076,-500.0,9.322e-05,2]
[400466170,1767593910097,-500.0,9.322e-05,2]
[400466171,1767593910120,-500.0,9.322e-05,2]
[400466172,1767593910141,-500.0,9.322e-05,2]
[400466173,1767593910163,-500.0,9.322e-05,2]
[400466174,1767593910185,-500.0,9.322e-05,2]
[400466175,1767593910207,-500.0,9.322e-05,2]
[400466176,1767593910230,-500.0,9.322e-05,2]
[400466177,1767593910252,-500.0,9.322e-05,2]
[400466178,1767593910273,-500.0,9.322e-05,2]
[400466179,1767593910295,-500.0,9.322e-05,2]
[400466180,1767593910316,-500.0,9.322e-05,2]
[400466181,1767593910337,-500.0,9.322e-05,2]
[400466182,1767593910359,-500.0,9.322e-05,2]
[400466183,1767593910381,-500.0,9.322e-05,2]
[400466184,1767593910404,-500.0,9.322e-05,2]
[400466185,1767593910428,-500.0,9.322e-05,2]
[400466186,1767593910453,-500.0,9.322e-05,2]
[400466187,1767593910474,-500.0,9.322e-05,2]
[400466188,1767593910496,-500.0,9.322e-05,2]
[400466189,1767593910518,-500.0,9.322e-05,2]
[400466190,1767593910539,-500.0,9.322e-05,2]
[400466191,1767593910562,-500.0,9.322e-05,2]
[400466192,1767593910585,-500.0,9.322e-05,2]
[400466193,1767593910608,-500.0,9.322e-05,2]
[400466194,1767593910633,-500.0,9.322e-05,2]
[400466195,1767593910653,-500.0,9.322e-05,2]
[400466196,1767593910680,-500.0,9.322e-05,2]
[400466197,1767593910701,-500.0,9.322e-05,2]
[400466198,1767593910723,-500.0,9.322e-05,2]
[400466199,1767593910893,-500.0,9.322e-05,2]
[400466200,1767593910915,-358.44517551,9.322e-05,2]
[400466201,1767593910936,-500.0,9.322e-05,2]
[400466202,1767593910957,-500.0,9.322e-05,2]
[400466203,1767593910978,-500.0,9.322e-05,2]
[400466204,1767593911001,-500.0,9.322e-05,2]
[400466205,1767593911022,-200.0,9.322e-05,2]
[400466206,1767593911044,-500.0,9.322e-05,2]
[400466207,1767593911064,-5979.21548654,9.323e-05,2]
[400466208,1767593911084,-207.482701,9.328e-05,2]
[400466209,1767593911104,-8476.24685886,9.341e-05,2]
[400466210,1767593911124,-2282.01158669,9.63e-05,2]
[400466211,1767593911157,-151.0,9.633e-05,2]
[400466212,1767593911179,-156.587,9.633e-05,2]
[400466213,1767593911200,-151.69155325,9.633e-05,2]
[400466214,1767593911222,-30000.0,9.633e-05,2]
[400466215,1767593911243,-151.0,9.856e-05,2]
[400466216,1767593911266,-496.47127164,9.856e-05,2]
[400466217,1767593911289,-250.0,9.856e-05,2]
[400466218,1767593911311,-151.0,9.856e-05,2]
[400466219,1767593911335,-500.0,9.856e-05,2]
[400466220,1767593911356,-250.0,9.856e-05,2]
[400466221,1767593911377,-154.59765388,9.856e-05,2]
[400466222,1767593911399,-151.0,9.856e-05,2]
[400466223,1767593911423,-500.0,9.856e-05,2]
[400466224,1767593911444,-270.00577006,9.856e-05,2]
[400466225,1767593911466,-500.0,9.856e-05,2]
[400466226,1767593911490,-151.0,9.856e-05,2]
[400466227,1767593911512,-500.0,9.856e-05,2]
[400466228,1767593911533,-151.0,9.856e-05,2]
[400466229,1767593911555,-500.0,9.856e-05,2]
[400466230,1767593911576,-151.0,9.856e-05,2]
[400466231,1767593911599,-500.0,9.856e-05,2]
[400466232,1767593911621,-500.0,9.856e-05,2]
[400466233,1767593911642,-151.0,9.856e-05,2]
[400466234,1767593911663,-500.0,9.856e-05,2]
[400466235,1767593911690,-151.0,9.856e-05,2]
[400466236,1767593911714,-500.0,9.856e-05,2]
[400466237,1767593911736,-151.0,9.856e-05,2]
[400466238,1767593911761,-500.0,9.856e-05,2]
[400466239,1767593911782,-151.0,9.856e-05,2]
[400466240,1767593911805,-500.0,9.856e-05,2]
[400466241,1767593911827,-151.0,9.856e-05,2]
[400466242,1767593911850,-500.0,9.856e-05,2]
[400466243,1767593911871,-500.0,9.856e-05,2]
[400466244,1767593911892,-151.0,9.856e-05,2]
[400466245,1767593911914,-500.0,9.856e-05,2]
[400466246,1767593911937,-500.0,9.856e-05,2]
[400466247,1767593911959,-2398.4119403,9.856e-05,2]
[400466248,1767593913560,5000.0,9.9e-05,2]
[400466249,1767593937161,584.64945413,9.9e-05,2]
[400466250,1767593965983,-156.28,9.253e-05,2]
[400466251,1767593966004,-4415.35054587,9.9e-05,2]
[400466252,1767593971994,188.27264807,9.632e-05,2]
[400466253,1767593973897,416.92964555,9.321e-05,2]
[400466254,1767593974284,500.0,9.321e-05,2]
[400466255,1767593974675,189.19666095,9.321e-05,2]
[400466256,1767593974951,524.65449673,9.321e-05,2]
[400466257,1767593974981,500.0,9.321e-05,2]
[400466258,1767593975035,500.0,9.321e-05,2]
[400466259,1767593975075,500.0,9.321e-05,2]
[400466260,1767593975118,500.0,9.321e-05,2]
[400466261,1767593975156,500.0,9.321e-05,2]
[400466262,1767593975214,500.0,9.321e-05,2]
[400466263,1767593975260,200.84451755,9.321e-05,2]
[400466264,1767593981315,5000.0,9.9e-05,2]
[400466265,1767593991133,300.0,9.321e-05,2]
[400466266,1767594004548,5000.0,9.9e-05,2]
[400466267,1767594008371,30000.0,9.9e-05,2]
[400466268,1767594028120,5000.0,9.9e-05,2]
[400466269,1767594051020,342.12924589,9.9e-05,2]
[400466270,1767594068038,3560.4985472,9.235e-05,2]
[400466271,1767594151527,736.76700918,9.726e-05,2]
[400466272,1767594154006,449.32863754,9.9e-05,2]
[400466273,1767594156830,1795.51723563,9.9e-05,2]
[400466275,1767594225836,5000.0,9.9e-05,2]
[400466276,1767594237320,633.8,0.00030137,120]
[400466277,1767594248598,3224.23080984,9.9e-05,2]
[400466280,1767594353622,174.09,7.308e-05,2]
[400466281,1767594354024,261.13,7.64e-05,2]
[400466282,1767594354437,348.17,7.972e-05,2]
[400466283,1767594354845,435.22,8.305e-05,2]
[400466284,1767594355267,522.26,8.637e-05,2]
[400466285,1767594355782,609.3,8.969e-05,2]
[400466286,1767594388021,1570.71587055,9.248e-05,2]
[400466287,1767594395308,-696.35,9.301e-05,2]
[400466288,1767594428522,239.96,7.451e-05,2]
[400466289,1767594428945,359.94,7.79e-05,2]
[400466290,1767594429372,479.92,8.129e-05,2]
[400466291,1767594429773,599.9,8.467e-05,2]
[400466292,1767594430224,719.89,8.806e-05,2]
[400466293,1767594430638,839.87,9.145e-05,2]
[400466294,1767594445833,5000.0,9.301e-05,2]
[400466295,1767594468181,367.83,9.301e-05,2]
[400466296,1767594468205,4632.17,9.301e-05,2]
[400466297,1767594491469,5000.0,9.301e-05,2]
[400466299,1767594499295,367.84,9.301e-05,2]
[400466300,1767594499320,2210.44251171,9.301e-05,2]
[400466301,1767594506067,246.58,6.343e-05,2]
[400466302,1767594506478,369.88,6.632e-05,2]
[400466303,1767594507045,493.17,6.92e-05,2]
[400466304,1767594507468,616.46,7.208e-05,2]
[400466305,1767594507972,739.75,7.497e-05,2]
[400466306,1767594508415,863.04,7.785e-05,2]
[400466307,1767594508849,986.33,8.074e-05,2]
[400466309,1767594509299,1109.63,8.362e-05,2]
[400466310,1767594509705,1232.92,8.65e-05,2]
[400466311,1767594547401,176.0,8.3e-07,2]
[400466312,1767594548438,176.0,8.3e-07,2]
[400466313,1767594549680,176.0,8.3e-07,2]
[400466316,1767594566346,603.80748829,9.24e-05,2]
[400466317,1767594566370,330.22427216,9.24e-05,2]
[400466318,1767594569560,3736.12704178,9.24e-05,2]
[400466319,1767594583768,154.23,7.834e-05,2]
[400466320,1767594584345,192.78,8.161e-05,2]
[400466321,1767594584951,231.34,8.487e-05,2]
[400466322,1767594585404,269.9,8.813e-05,2]
[400466323,1767594585806,308.45,9.14e-05,2]
[400466324,1767594611459,200.0,0.0001,10]
[400466325,1767594612217,237.19,0.0001,10]
[400466376,1767594638423,-300.0,9.404e-05,2]
[400466377,1767594638434,-2.0,9.404e-05,2]
[400466378,1767594638446,-298.0,9.404e-05,2]
[400466379,1767594638456,-300.0,9.404e-05,2]
[400466380,1767594638466,-174.0,9.404e-05,2]
[400466381,1767594638475,-552.0,9.404e-05,2]
[400466382,1767594638485,-1334.9957818,9.405e-05,2]
[400466383,1767594638494,-5339.98312718,9.405e-05,2]
[400466384,1767594638504,-5000.0,9.437e-05,2]
[400466385,1767594638514,-347.01,9.466e-05,2]
[400466386,1767594638524,-193.99423857,9.485e-05,2]
[400466387,1767594638534,-5000.0,9.532e-05,2]
[400466388,1767594638543,-30000.0,9.726e-05,2]
[400466389,1767594638553,-385.57,9.793e-05,2]
[400466390,1767594638563,-2986.29930146,0.0001,2]
[400466391,1767594638572,-500.0,0.00010009,2]
[400466392,1767594638582,-150.40721649,0.00010009,2]
[400466393,1767594638591,-500.0,0.00010009,2]
[400466394,1767594638601,-500.0,0.00010009,2]
[400466395,1767594638610,-270.94949199,0.00010009,2]
[400466396,1767594638621,-172.45893762,0.00010009,2]
[400466397,1767594638630,-210.36796947,0.00010009,2]
[400466398,1767594638640,-150.86745425,0.00010009,2]
[400466399,1767594638649,-500.0,0.00010132,2]
[400466400,1767594638658,-500.0,0.00010132,2]
[400466401,1767594638668,-500.0,0.00010132,2]
[400466402,1767594638678,-500.0,0.00010132,2]
[400466403,1767594638687,-500.0,0.00010132,2]
[400466404,1767594638697,-496.47127164,0.00010132,2]
[400466405,1767594638706,-500.0,0.00010132,2]
[400466406,1767594638715,-500.0,0.00010132,2]
[400466407,1767594638725,-500.0,0.00010132,2]
[400466408,1767594638734,-500.0,0.00010132,2]
[400466409,1767594638744,-2398.4119403,0.00010132,2]
[400466410,1767594638753,-488.4713054,0.00010132,2]
[400466411,1767594638763,-253765.196562,0.00010138,2]
[400466412,1767594638773,-2481.24690892,0.0001014,2]
[400466413,1767594638782,-500.0,0.00010146,2]
[400466414,1767594638793,-153.84706237,0.00010146,2]
[400466415,1767594638802,-171.90291234,0.00010146,2]
[400466416,1767594638811,-502.92226904,0.00010146,2]
[400466417,1767594638820,-505.2076157,0.00010146,2]
[400466418,1767594638830,-500.0,0.00010146,2]
[400466419,1767594638839,-500.0,0.00010146,2]
[400466420,1767594638849,-500.0,0.00010146,2]
[400466421,1767594638860,-150.97607757,0.00010146,2]
[400466422,1767594638871,-171.805,0.000102,2]
[400466423,1767594638881,-31110.0,0.00010274,2]
[400466424,1767594638891,-259.78430152,0.00010283,2]
[400466425,1767594638900,-609.50906543,0.00010283,2]
[400466426,1767594638909,-500.0,0.00010283,2]
[400466427,1767594638918,-500.0,0.00010283,2]
[400466428,1767594638928,-500.0,0.00010283,2]
[400466429,1767594638939,-151.22238193,0.00010283,2]
[400466430,1767594638948,-153.05519507,0.00010305,2]
[400466431,1767594638957,-301.0,0.00010344,2]
[400466432,1767594638966,-420.0,0.00010344,2]
[400466433,1767594638976,-151.2254809,0.0001042,2]
[400466434,1767594638985,-500.0,0.0001042,2]
[400466435,1767594638994,-550.0,0.0001042,2]
[400466436,1767594639003,-500.0,0.0001042,2]
[400466437,1767594639012,-661.26,0.00010457,2]
[400466438,1767594639022,-2195.52406749,0.00010468,2]
[400466439,1767594639031,-238.56857466,0.00010557,2]
[400466440,1767594639041,-500.0,0.00010557,2]
[400466441,1767594639050,-500.0,0.00010557,2]
[400466442,1767594639060,-1868.8254072,0.00010598,2]
[400466443,1767594639070,-2481.24690892,0.00010634,2]
[400466444,1767594639079,-514.84070869,0.0001068,2]
[400466445,1767594639088,-552.39097994,0.0001068,2]
[400466446,1767594639098,-500.0,0.00010694,2]
[400466447,1767594639108,-500.0,0.00010694,2]
[400466448,1767594639118,-2481.24690892,0.00010719,2]
[400466449,1767594639128,-27003.44491279,0.00010822,2]
[400466450,1767594639139,-3138.02537886,0.00010829,2]
[400466451,1767594639149,-500.0,0.00010831,2]
[400466452,1767594639158,-500.0,0.00010831,2]
[400466453,1767594639167,-416.9913124,0.00010897,2]
[400466454,1767594639178,-500.0,0.00010968,2]
[400466455,1767594639187,-500.0,0.00010968,2]
[400466456,1767594639196,-1684.30562002,0.00011009,2]
[400466457,1767594639210,-500.0,0.00011105,2]
[400466458,1767594639224,-355.61506117,0.00011105,2]
[400466459,1767594639238,-533.88981491,0.00011228,2]
[400466460,1767594639251,-500.0,0.00011242,2]
[400466461,1767594639264,-500.0,0.00011379,2]
[400466462,1767594639277,-587.0,0.00011379,2]
[400466463,1767594639288,-228.91320151,0.00011485,2]
[400466464,1767594639299,-500.0,0.00011516,2]
[400466465,1767594639310,-302.47712024,0.00011653,2]
[400466466,1767594639323,-553.64373807,0.00011776,2]
[400466467,1767594639336,-574.12855637,0.00012324,2]
[400466468,1767594639347,-1593.95,0.00012329,2]
[400466469,1767594639358,-1328.29,0.00012329,2]
[400466470,1767594639371,-1106.91,0.00012329,2]
[400466471,1767594639384,-922.42,0.00012329,2]
[400466472,1767594639397,-768.68,0.00012329,2]
[400466473,1767594639409,-640.57,0.00012329,2]
[400466474,1767594639420,-533.81,0.00012329,2]
[400466475,1767594639432,-444.84,0.00012329,2]
[400466476,1767594639444,-370.7,0.00012329,2]
[400466477,1767594639457,-308.92,0.00012329,2]
[400466478,1767594639470,-257.43,0.00012329,2]
[400466479,1767594639481,-214.53,0.00012329,2]
[400466480,1767594639494,-178.77,0.00012329,2]
[400466481,1767594639506,-893.88,0.00012329,2]
[400466482,1767594639517,-823.0,0.00012517,2]
[400466483,1767594639531,-595.37131296,0.00012872,2]
[400466484,1767594639544,-3235.66012848,0.000129,2]
[400466485,1767594639555,-1041.66666667,0.00012969,2]
[400466486,1767594639567,-500.0,0.00013273,2]
[400466487,1767594639579,-500.0,0.00013273,2]
[400466488,1767594639591,-500.0,0.00013273,2]
[400466489,1767594639603,-561.32603782,0.0001342,2]
[400466490,1767594639614,-263.83216446,0.00013485,2]
[400466491,1767594639625,-3235.66012847,0.00013564,2]
[400466492,1767594639636,-899.0,0.000136,2]
[400466493,1767594639646,-300.0,0.00013673,2]
[400466494,1767594639656,-571.66631772,0.00013698,2]
[400466495,1767594639667,-1000.0,0.00013699,2]
[400466496,1767594639678,-881.330756,0.00013699,2]
[400466497,1767594639688,-749.43959,0.00013699,2]
[400466498,1767594639700,-159.51734725,0.00013699,2]
[400466499,1767594639711,-500.0,0.00013699,2]
[400466500,1767594639723,-500.0,0.00013699,2]
[400466501,1767594639734,-500.0,0.00013699,2]
[400466502,1767594639746,-500.0,0.00013699,2]
[400466503,1767594639758,-694.0,0.00013768,2]
[400466504,1767594639769,-1000.0,0.00013821,2]
[400466505,1767594639781,-1000.0,0.00013821,2]
[400466506,1767594639796,-1000.0,0.00013821,2]
[400466507,1767594639809,-151.0,0.00014175,2]
[400466508,1767594639821,-1244.07450668,0.00014175,2]
[400466509,1767594639832,-2338.14901336,0.00014175,2]
[400466510,1767594639844,-600.0,0.00014221,2]
[400466511,1767594639859,-1000.0,0.00014247,2]
[400466512,1767594639869,-1000.0,0.00014247,2]
[400466513,1767594639879,-1000.0,0.00014247,2]
[400466514,1767594639891,-152.0,0.00014278,2]
[400466515,1767594639901,-152.0,0.00014278,2]
[400466516,1767594639910,-152.0,0.00014278,2]
[400466517,1767594639922,-152.0,0.00014278,2]
[400466518,1767594639935,-152.0,0.00014278,2]
[400466519,1767594639946,-152.0,0.00014278,2]
[400466520,1767594639959,-152.0,0.00014278,2]
[400466522,1767594639971,-152.0,0.00014278,2]
[400466523,1767594639982,-187.21523925,0.00014278,2]
[400466524,1767594639993,-1500.0,0.00014368,2]
[400466525,1767594640003,-1500.0,0.00014368,2]
[400466526,1767594640015,-1500.0,0.00014368,2]
[400466527,1767594640027,-10000.0,0.0001451,2]
[400466528,1767594640039,-151.0,0.00014736,2]
[400466529,1767594640052,-151.0,0.00014736,2]
[400466530,1767594640063,-151.0,0.00014736,2]
[400466531,1767594640074,-100000.0,0.00014736,2]
[400466532,1767594640084,-900.0,0.00014768,2]
[400466533,1767594640094,-1500.0,0.00014795,2]
[400466535,1767594640104,-1500.0,0.00014795,2]
[400466537,1767594640114,-1500.0,0.00014795,2]
[400466538,1767594640124,-2000.0,0.00014916,2]
[400466540,1767594640136,-2000.0,0.00014916,2]
[400466541,1767594640146,-2000.0,0.00014916,2]
[400466542,1767594640157,-1000.0,0.00015,2]
[400466543,1767594640167,-176.226842,0.00015068,2]
[400466544,1767594640179,-800.0,0.00015068,2]
[400466545,1767594640190,-2000.0,0.00015342,2]
[400466546,1767594640203,-2000.0,0.00015342,2]
[400466547,1767594640214,-2000.0,0.00015342,2]
[400466548,1767594640226,-2500.0,0.00015464,2]
[400466549,1767594640239,-2500.0,0.00015464,2]
[400466550,1767594640251,-2500.0,0.00015464,2]
[400466551,1767594640262,-298.7511274,0.00015485,2]
[400466552,1767594640273,-5620.37253342,0.00015564,3]
[400466553,1767594640285,-181.50711325,0.00015622,2]
[400466554,1767594640296,-184.80545578,0.00015701,2]
[400466555,1767594640306,-2500.0,0.0001589,2]
[400466556,1767594640318,-1000.0,0.0001589,2]
[400466558,1767594640328,-2500.0,0.0001589,2]
[400466559,1767594640339,-3191.0,0.00015996,2]
[400466560,1767594640350,-947.60884294,0.00016012,2]
[400466561,1767594640360,-627.52709265,0.00016012,2]
[400466562,1767594640371,-3000.0,0.00016012,2]
[400466564,1767594640382,-1600.0,0.00016164,2]
[400466566,1767594640393,-168.0,0.00016199,2]
[400466568,1767594640403,-168.0,0.00016291,2]
[400466570,1767594640413,-168.0,0.00016345,2]
[400466572,1767594640425,-168.0,0.0001643,2]
[400466574,1767594640435,-640.19726702,0.00016438,2]
[400466576,1767594640445,-151.0,0.00016438,2]
[400466578,1767594640456,-151.0,0.00016438,2]
[400466581,1767594640467,-3000.0,0.00016438,2]
[400466583,1767594640477,-1331.90485238,0.00016438,2]
[400466584,1767594640488,-3500.0,0.0001656,2]
[400466586,1767594640499,-168.0,0.00016658,2]
[400466588,1767594640509,-168.0,0.00016837,2]
[400466590,1767594640520,-168.0,0.00016898,2]
[400466592,1767594640530,-168.0,0.00016901,2]
[400466594,1767594640541,-168.0,0.00016963,2]
[400466597,1767594640551,-3500.0,0.00016986,2]
[400466599,1767594640561,-151.0,0.0001699,2]
[400466601,1767594640572,-151.0,0.0001699,2]
[400466603,1767594640582,-864.0,0.00017,2]
[400466604,1767594640594,-13029.0,0.00017,2]
[400466605,1767594640606,-6714.4470401,0.00017023,6]
[400466606,1767594640617,-3580.44373269,0.00017108,2]
[400466607,1767594640628,-168.0,0.00017112,2]
[400466608,1767594640639,-177.86035195,0.00017133,18]
[400466609,1767594640650,-500.0,0.00017166,7]
[400466610,1767594640660,-151.0,0.00017167,2]
[400466611,1767594640671,-192.775614,0.00017167,2]
[400466612,1767594640682,-168.0,0.00017205,2]
[400466613,1767594640692,-168.0,0.00017233,3]
[400466614,1767594640704,-1600.0,0.0001726,2]
[400466615,1767594640714,-168.0,0.00017312,2]
[400466616,1767594640725,-168.0,0.0001741,2]
[400466617,1767594640736,-3235.66012847,0.00017434,2]
[400466618,1767594640747,-333.67009034,0.00017485,2]
[400466619,1767594640758,-2614.12901603,0.00017534,2]
[400466620,1767594640899,-1385.87098397,0.00017534,2]
[400466621,1767594640908,-3306.49870451,0.0001764,2]
[400466622,1767594640920,-736.0,0.0001774,2]
[400466623,1767594640930,-168.0,0.00017743,2]
[400466624,1767594641121,-652.58566204,0.000178,2]
[400466625,1767594641133,-1361.38293096,0.000178,3]
[400466626,1767594642280,-2343.35187807,0.000178,3]
[400466642,1767594645548,-500.0,0.00016197,2]
[400466652,1767594838428,4776.95868606,9.301e-05,2]
[400466653,1767594838459,223.04131394,9.301e-05,2]
[400466654,1767594854084,5000.0,9.307e-05,2]
[400466655,1767594862860,160.83,7.79e-05,2]
[400466656,1767594863291,180.93,8.068e-05,2]
[400466657,1767594863724,187.80027206,8.347e-05,2]
[400466658,1767594953246,231.73006254,0.00025257,120]
[400466659,1767595057603,5000.0,0.0001,10]
[400466660,1767595080061,175.56,9.99e-06,7]
[400466661,1767595265934,4294.88972794,9.307e-05,2]
[400466662,1767595265959,705.11027206,9.307e-05,2]
[400466663,1767595274046,5000.0,9.307e-05,2]
[400466664,1767595289336,4294.89972794,9.307e-05,2]
[400466665,1767595289361,705.10027206,9.307e-05,2]
[400466666,1767595297304,5000.0,9.307e-05,2]
[400466667,1767595313326,4294.90972794,9.307e-05,2]
[400466668,1767595313352,705.09027206,9.307e-05,2]
[400466670,1767595321852,5000.0,9.307e-05,2]
[400466671,1767595337348,4294.91972794,9.307e-05,2]
[400466672,1767595337374,705.08027206,9.307e-05,2]
[400466673,1767595344279,-160.3,9.308e-05,2]
[400466674,1767595345260,5000.0,9.307e-05,2]
[400466675,1767595361027,4679.41,9.308e-05,2]
[400466676,1767595361052,320.59,9.308e-05,2]
[400466677,1767595368850,5000.0,9.308e-05,2]
[400466678,1767595377270,1762.18889453,9.308e-05,2]
[400466679,1767595385088,2917.23110547,9.308e-05,2]
[400466680,1767595385118,2082.76889453,9.308e-05,2]
[400466681,1767595395506,5000.0,9.308e-05,2]
[400466682,1767595399721,165.1,9.005e-05,2]
[400466683,1767595411375,2752.14110547,9.308e-05,2]
[400466684,1767595411400,2247.85889453,9.308e-05,2]
[400466685,1767595419793,5000.0,9.308e-05,2]
[400466686,1767595435315,2752.15110547,9.308e-05,2]
[400466687,1767595435343,2247.84889453,9.308e-05,2]
[400466688,1767595440281,-185.74,9.326e-05,2]
[400466689,1767595443926,5000.0,9.326e-05,2]
[400466690,1767595460375,4628.53,9.326e-05,2]
[400466691,1767595460400,371.47,9.326e-05,2]
[400466692,1767595468283,5000.0,9.326e-05,2]
[400466693,1767595483595,4628.54,9.326e-05,2]
[400466694,1767595483619,371.46,9.326e-05,2]
[400466695,1767595492679,5000.0,9.326e-05,2]
[400466696,1767595508698,4628.55,9.326e-05,2]
[400466697,1767595508724,371.45,9.326e-05,2]
[400466698,1767595517071,5000.0,9.326e-05,2]
[400466699,1767595532373,4628.56,9.326e-05,2]
[400466700,1767595532399,371.44,9.326e-05,2]
[400466701,1767595540259,5000.0,9.326e-05,2]
[400466702,1767595544935,420.0,0.00030136,120]
[400466703,1767595555610,4628.57,9.326e-05,2]
[400466704,1767595555636,371.43,9.326e-05,2]
[400466705,1767595563895,5000.0,9.326e-05,2]
[400466706,1767595579298,4628.58,9.326e-05,2]
[400466707,1767595579324,371.42,9.326e-05,2]
[400466708,1767595587193,5000.0,9.326e-05,2]
[400466709,1767595595406,851.00161774,9.326e-05,2]
[400466710,1767595598945,154.28,6.607e-05,2]
[400466712,1767595599396,231.42,6.907e-05,2]
[400466713,1767595599824,308.57,7.208e-05,2]
[400466714,1767595600346,385.71,7.508e-05,2]
[400466715,1767595600848,462.85,7.808e-05,2]
[400466716,1767595601273,539.99,8.108e-05,2]
[400466717,1767595601704,617.13,8.409e-05,2]
[400466718,1767595602140,694.27,8.709e-05,2]
[400466719,1767595602532,383.36838226,9.009e-05,2]
[400466720,1767595602559,388.05161774,9.009e-05,2]
[400466721,1767595603577,5000.0,9.326e-05,2]
[400466722,1767595611749,4611.95838226,9.326e-05,2]
[400466723,1767595611772,388.04161774,9.326e-05,2]
[400466724,1767595627775,5000.0,9.326e-05,2]
[400466725,1767595635649,4611.96838226,9.326e-05,2]
[400466726,1767595651382,5000.0,9.244e-05,2]
[400466727,1767595666073,-388.03161774,9.326e-05,2]
[400466728,1767595674083,5000.0,9.326e-05,2]
[400466729,1767595674558,194.17,6.606e-05,2]
[400466730,1767595674989,291.26,6.906e-05,2]
[400466731,1767595675773,388.35,7.206e-05,2]
[400466732,1767595675876,485.43,7.507e-05,2]
[400466733,1767595676377,582.52,7.807e-05,2]
[400466734,1767595676829,679.6,8.107e-05,2]
[400466735,1767595677327,776.69,8.407e-05,2]
[400466736,1767595677750,825.92676452,8.708e-05,2]
[400466737,1767595677775,47.85323548,8.708e-05,2]
[400466738,1767595678218,970.86,9.008e-05,2]
[400466739,1767595682019,5000.0,9.326e-05,2]
[400466740,1767595697788,3981.29676452,9.326e-05,2]
[400466741,1767595697814,1018.70323548,9.326e-05,2]
[400466742,1767595706167,5000.0,9.326e-05,2]
[400466743,1767595722053,3981.30676452,9.326e-05,2]
[400466744,1767595722081,1018.69323548,9.326e-05,2]
[400466745,1767595730214,5000.0,9.326e-05,2]
[400466746,1767595746249,3981.31676452,9.326e-05,2]
[400466747,1767595751534,164.42,7.014e-05,2]
[400466748,1767595752083,246.62,7.333e-05,2]
[400466749,1767595752557,328.83,7.651e-05,2]
[400466750,1767595753005,411.04,7.97e-05,2]
[400466751,1767595753479,493.25,8.289e-05,2]
[400466752,1767595753911,575.46,8.608e-05,2]
[400466753,1767595754205,5000.0,9.244e-05,2]
[400466754,1767595754327,657.67,8.927e-05,2]
[400466755,1767595776976,-739.87,9.246e-05,2]
[400466756,1767595777234,5000.0,9.244e-05,2]
[400466757,1767595799597,3520.27,9.246e-05,2]
[400466758,1767595799621,1479.73,9.246e-05,2]
[400466759,1767595822290,5000.0,9.246e-05,2]
[400466760,1767595828066,214.86,8.197e-05,2]
[400466761,1767595828551,286.48,8.554e-05,2]
[400466762,1767595828970,358.09,8.91e-05,2]
[400466798,1767595832509,-398.0,9.266e-05,2]
[400466899,1767595840788,-31.71,9.266e-05,2]
[400466901,1767595840797,-207.46766639,9.314e-05,2]
[400466903,1767595840807,-167.61102213,9.32e-05,2]
[400466921,1767595840972,-51.16131145,9.326e-05,2]
[400466961,1767595844872,2660.85,9.246e-05,2]
[400466962,1767595844897,2339.15,9.246e-05,2]
[400466964,1767595845876,-967.52192403,9.326e-05,2]
[400466965,1767595845886,-501.33,9.623e-05,2]
[400466966,1767595845896,-300.0,9.798e-05,2]